Cogmind - Beta 16 *** ADVENTURER MODE // 2025.11.04 @ 11:52:14 Player: zxpr0jk Result: Self-destructed Performance ------------- Evolutions (1) 500 Regions Visited (2) 400 Robots Destroyed (22) 110 Value Destroyed (646) 646 Prototype IDs (0) 0 Alien Tech Used (0) 0 Bonus (0) 0 TOTAL SCORE: 1656 Bonus ------- None Cogmind --------- Core Integrity 109/400 Matter 296/300 Energy 265/265 System Corruption 0% Temperature Cool (0) Movement Treading (240) Ox1 Location -9/Materials Parts ------- > --- POWER (1) -------- Improved Ion Engine > --- PROPULSION (2) --- Light Treads > --- UTILITY (4) ------ Large Storage Unit Machine Analyzer Visual Processing Unit Targeting Computer > --- WEAPON (2) ------- (None) > --- INVENTORY (15) --- (None) Peak State ------------ > --- POWER ------------ Light Nuclear Core > --- PROPULSION ------- Light Treads Light Treads > --- UTILITY ---------- Machine Analyzer Visual Processing Unit Targeting Computer Light Armor Plating > --- WEAPON ----------- Assault Rifle Assault Rifle > --- INVENTORY -------- Large Storage Unit [Rating: 14] Favorites ----------- Power Ion Engine Engine Ion Engine Power Core Light Nuclear Core Propulsion Compact Wheel Treads Light Treads Leg Improved Aluminum Leg Wheel Compact Wheel Utility Heat Sink Device Heat Sink Storage Small Storage Unit Processor Visual Processing Unit Protection Light Armor Plating Weapon Medium Laser Energy Gun Medium Laser Ballistic Gun Assault Rifle Build | -11 -10 -9 ------- Run | Yrd Mat Mat Slots Evolved 2 | . . 2 Power . | . . . Propulsion . | . . . Utility 2 | . . 2 Weapon . | . . . Parts Attached 21 | 6 3 12 Power 4 | 1 1 2 Engine 3 | 1 1 1 Core 1 | . . 1 Reactor . | . . . Propulsion 5 | 2 . 3 Treads 2 | . . 2 Leg 1 | . . 1 Wheel 2 | 2 . . Hover . | . . . Flight . | . . . Utility 8 | 1 2 5 Device 2 | . 1 1 Storage 2 | 1 1 . Processor 3 | . . 3 Hackware . | . . . Protection 1 | . . 1 Artifact . | . . . Weapon 4 | 2 . 2 Energy Gun 2 | 2 . . Energy Cannon . | . . . Ballistic Gun 2 | . . 2 Ballistic Cannon . | . . . Launcher . | . . . Special Weapon . | . . . Impact Weapon . | . . . Slashing Weapon . | . . . Piercing Weapon . | . . . Special Melee Weapon . | . . . Unidentified Prototypes . | . . . Parts Lost 11 | . . 11 Power 2 | . . 2 Propulsion 3 | . . 3 Utility 2 | . . 2 Weapon 4 | . . 4 Highest Loss Streak 6 | . . 6 To Critical Strikes . | . . . Average Backups 2 | . 2 2 Power . | . . . Propulsion . | . . . Utility 1 | . 1 1 Weapon . | . . . Tool/Special . | . . . Unused Backups 1 | . . 1 Power . | . . . Propulsion . | . . . Utility 1 | . . 1 Weapon . | . . . Tool/Special . | . . . Average Slot Usage (%) 92 | . 99 84 Engine 9 | . 14 4 Core 1 | . . 3 Treads 5 | . . 11 Wheel 18 | . 28 6 Device 8 | . 13 2 Storage 9 | . 14 3 Processor 12 | . . 27 Protection 2 | . . 4 Energy Gun 18 | . 28 7 Ballistic Gun 6 | . . 13 Peak Build Rating 14 | 6 7 14 Average Rating 8 | 4 6 10 On Entrance 4 | . 6 7 Avg Prop Armor Cover (%) 8 | . . 8 Naked Turns . | . . . Heaviest Build 31 | 14 30 31 Greatest Support 40 | 32 32 40 Greatest Overweight (x) 2 | . . 2 Average Overweight (x) . | . . . Largest Inventory Capacity 15 | 8 15 15 Average Capacity 9 | 7 10 8 Most Carried 5 | . 5 5 Average Carried 2 | . 2 2 Final Capacity 15 | 8 15 15 Final Carried 5 | . 5 . Class Distribution -------------------- 76% | Mutant 23% | Scavenger-Mutant Dominant Class ---------------- Mutant | -10/Materials Scavenger-Mutant | -9/Materials Resources | -11 -10 -9 ----------- Run | Yrd Mat Mat Matter Collected 571 | 209 81 281 Remotely . | . . . Salvage Created 798 | . 139 659 Parts 59 | . 14 45 Haulers Intercepted . | . . . Recyclers Shooed . | . . . Parts Field Recycled . | . . . Retrieved Matter . | . . . Parts Self-Destructed . | . . . Prevented . | . . . Parts Restored . | . . . Kills | -11 -10 -9 ------- Run | Yrd Mat Mat Combat Hostiles Destroyed 16 | . 4 12 Guns 16 | . 4 12 Classes Destroyed 7 | . 4 3 Worker 1 | . 1 . Mechanic 1 | . . 1 Watcher 4 | . 1 3 Swarmer 2 | . 2 . Grunt 9 | . 2 7 Duelist 2 | . . 2 Sentry 3 | . . 3 Best Kill Streak 7 | . 2 7 Combat Bots Only 6 | . 2 6 Max Kills in Single Turn 2 | . 1 2 Gunslinging 1 | . . 1 Exploded . | . . . Melee . | . . . Uniques/NPCs Destroyed . | . . . Combat | -11 -10 -9 -------- Run | Yrd Mat Mat Hostile Shots Fired 150 | . 12 138 Missed 44 | . 3 41 Hits 106 | . 9 97 Melee 11 | . . 11 Projectile 95 | . 9 86 Critical Strikes 4 | . . 4 Damage Taken 1208 | . 67 1141 Core 320 | . 29 291 Absorbed by Shields 64 | . . 64 Ignored by Resistances 366 | . 21 345 Core Remaining (%) 94 | 100 88 . Volleys Fired 67 | . 10 57 Largest 2 | . 2 2 Hottest 90 | . 90 90 Shots Fired 122 | . 20 102 Gun 122 | . 20 102 Cannon . | . . . Launcher . | . . . Special . | . . . Kinetic 61 | . . 61 Thermal 39 | . 10 29 Explosive . | . . . Electromagnetic 22 | . 10 12 Robot Hit Streak 14 | . 5 14 Robot Miss Streak 3 | . 3 2 Penetration Max . | . . . Secondary Targets 3 | . . 3 Max Gunslinging Chain 1 | . . 1 Shots Hit Robots 97 | . 12 85 Core Hits 39 | . 7 32 Critical Kills . | . . . Critical Parts Destroyed 1 | . . 1 Critical Strikes 3 | . . 3 Burn 2 | . . 2 Destroy 1 | . . 1 Melee Attacks . | . . . Impact . | . . . Slashing . | . . . Piercing . | . . . Sneak Attacks . | . . . Combat Hostiles . | . . . Follow-up Attacks . | . . . Damage Inflicted 1383 | . 176 1207 Guns 1281 | . 176 1105 Cannons . | . . . Explosions 98 | . . 98 Melee . | . . . Ramming 4 | . . 4 Kinetic 653 | . . 653 Thermal 480 | . 65 415 Explosive . | . . . Electromagnetic 246 | . 111 135 Impact . | . . . Slashing . | . . . Piercing . | . . . Highest Corruption . | . . . Average Corruption . | . . . Corruption Purged . | . . . Corruption Blocked . | . . . Overload Shots . | . . . Overflow Damage . | . . . Projectiles . | . . . Explosions . | . . . Melee . | . . . Knockbacks . | . . . Impact . | . . . Kinetic . | . . . Secondary . | . . . Self-Inflicted Damage 15 | . . 15 Shots 1 | . . 1 Rammed 1 | . . 1 Targets Rammed 1 | . . 1 Kicked . | . . . Crushed . | . . . Highest Temperature 183 | . 48 183 Average Temperature 54 | . 25 58 Received Heat Transfer 512 | . 24 488 Siege Activations . | . . . Martial Activations . | . . . Shielding Activations . | . . . Robots Disrupted . | . . . Combat Hostiles . | . . . Robots Corrupted . | . . . Combat Hostiles . | . . . Parts Fried . | . . . Impact Corruptions . | . . . Robots Melted . | . . . Combat Hostiles . | . . . Parts Melted 1 | . . 1 Heat Transferred 1358 | . 185 1173 Parts Sabotaged . | . . . Parts Stolen . | . . . Parts Stripped . | . . . Power Chain Reactions 1 | . . 1 Alert | -11 -10 -9 ------- Run | Yrd Mat Mat Maximum Alert Level . | . . . Low Security (%) 100 | 100 100 100 Level 1 . | . . . Level 2 . | . . . Level 3 . | . . . Level 4 . | . . . Level 5 . | . . . High Security . | . . . Max Security . | . . . Peak Influence 192 | . 60 192 Initial 3 | . . 3 Average 45 | . 16 84 Influence Increases 548 | . 171 377 Destroy 0b10 Robot/C 320 | . 80 240 Destroy 0b10 Robot/NC 30 | . 10 20 Destroy Leader 88 | . 22 66 Successful Hack 17 | . 14 3 Destroy Structure 3 | . . 3 Partial Spotted 15 | . . 15 Lose Combat Pursuer 75 | . 45 30 Influence Decreases 416 | . 161 255 Entered New Map 7 | . . 7 Time Decay 329 | . 161 168 Lost Part 80 | . . 80 Squads Dispatched 1 | . 1 . Investigation 1 | . 1 . Extermination . | . . . Reinforcement . | . . . Assault . | . . . Garrison . | . . . Intercept . | . . . Searches Triggered . | . . . Construction Impeded . | . . . Haulers Reinforced . | . . . Active Scanning Responses . | . . . Cargo Convoy Interrupts . | . . . Stealth | -11 -10 -9 --------- Run | Yrd Mat Mat Distress Signals 4 | . 1 3 Communications Jammed . | . . . Distress Signals . | . . . Times Spotted 33 | . 12 21 Peak Tracking Total 5 | . 5 5 Tactical Retreats 4 | . 2 2 Traps | -11 -10 -9 ------- Run | Yrd Mat Mat Traps Triggered . | . . . Indirectly . | . . . Trap Hack Attempts . | . . . Triggered . | . . . Disarmed . | . . . Reprogrammed . | . . . Reused . | . . . Traps Extracted . | . . . Installed . | . . . Triggered . | . . . Machines | -11 -10 -9 ---------- Run | Yrd Mat Mat Machines Disabled . | . . . Max in Single Turn . | . . . Machines Repaired . | . . . Machines Dismantled . | . . . Machines Sabotaged . | . . . Overloaded Fab Kills . | . . . Hacking | -11 -10 -9 --------- Run | Yrd Mat Mat Machines Accessed 7 | . 6 1 Terminals 5 | . 4 1 Fabricators . | . . . Repair Stations . | . . . Recycling Units 2 | . 2 . Scanalyzers . | . . . Garrison Access . | . . . Total Hacks 19 | . 17 2 Successful 15 | . 14 1 Failed 4 | . 3 1 Catastrophic . | . . . Database Lockouts . | . . . Manual 18 | . 16 2 Terminals 12 | . 10 2 Fabricators . | . . . Repair Stations . | . . . Recycling Units 7 | . 7 . Scanalyzers . | . . . Garrison Access . | . . . Terminal Hacks . | . . . Fabricator Hacks . | . . . Repair Station Hacks . | . . . Recycling Unit Hacks 1 | . 1 . Report Inventory 1 | . 1 . Scanalyzer . | . . . Garrison Access Hacks . | . . . Unauthorized Hacks 14 | . 13 1 Terminals 8 | . 7 1 Assimilate 2 | . 2 . Botnet 1 | . 1 . Skim 5 | . 4 1 Fabricators . | . . . Repair Stations . | . . . Recycling Units 6 | . 6 . Monitor 1 | . 1 . Reject 1 | . 1 . Recyclers 2 | . 2 . Mask 2 | . 2 . Scanalyzers . | . . . Garrison Access . | . . . Data Cores Recovered . | . . . Used . | . . . Hacking Detections 6 | . 5 1 Full Trace Events 1 | . 1 . Feedback Events . | . . . Feedback Blocked . | . . . Robot Schematics Acquired . | . . . Robots Built . | . . . Authchips . | . . . Time . | . . . Total Robot Build Rating . | . . . Part Schematics Acquired . | . . . Parts Built . | . . . Authchips . | . . . Time . | . . . Total Part Build Rating . | . . . Part Studies Acquired . | . . . Parts Repaired . | . . . Time . | . . . Parts Recycled . | . . . Recycled Matter . | . . . Retrieved Matter . | . . . Retrieved Components . | . . . Parts Scanalyzed . | . . . Part Schematics Acquired . | . . . Parts Damaged . | . . . Bothacking | -11 -10 -9 ------------ Run | Yrd Mat Mat Used RIF Installer . | . . . Robots Hacked . | . . . Non-combat . | . . . Combat . | . . . Robot Hacks Applied . | . . . Relay Couplers Released . | . . . Fabnet Peak Effective % . | . . . Robots Rewired . | . . . Allies Hacked . | . . . Hacks Repelled . | . . . Allies | -11 -10 -9 -------- Run | Yrd Mat Mat Total Allies . | . . . Largest Group . | . . . Highest-Rated Group . | . . . Highest-Rated Ally . | . . . Total Orders . | . . . Ally Attacks . | . . . Total Damage . | . . . Kills . | . . . Allies Corrupted . | . . . Allies Melted . | . . . Intel | -11 -10 -9 ------- Run | Yrd Mat Mat Active Infowar (turns) 433 | . . 433 Optics 433 | . . 433 Machine Analysis 225 | . . 225 Robot Analysis Total . | . . . Derelict Logs Recovered . | . . . Drone Launches . | . . . Drone Recoveries . | . . . Exploration | -11 -10 -9 ------------- Run | Yrd Mat Mat Turns Passed 1005 | 44 528 433 Spaces Moved 696 | 37 487 172 Core 7 | 2 . 5 Treads 100 | . . 100 Legs 4 | . . 4 Wheels 585 | 35 487 63 Hover . | . . . Flight . | . . . Fastest Speed 50 | 50 100 100 Average Speed 109 | 97 100 137 Slowest Speed 240 | 100 100 240 Overloaded Moves . | . . . Propulsion Burnouts . | . . . Robots Hopped . | . . . Potential Cave-ins . | . . . Cave-ins Triggered . | . . . Exploration Rate (%) 30 | 3 69 20 Regions Visited 2 Branch Regions . Pre-discovered Areas . | . . . Known Exits Taken . | . . . Unknown Exits Taken 2 | 1 1 . Scrap Searched . | . . . Spaces Dug . | . . . Terrain Destroyed 3 | . . 3 Melee . | . . . Projectile . | . . . AOE 3 | . . 3 Terrain Rammed . | . . . Walls Destroyed . | . . . Machines Disabled . | . . . Actions | -11 -10 -9 --------- Run | Yrd Mat Mat Total 812 | 42 507 263 Wait 14 | . 3 11 Move 694 | 36 486 172 Hop . | . . . Pick Up 6 | . 4 2 Fast Attach 15 | 6 1 8 Attach 6 | . . 6 Detach 2 | . . 2 Swap 3 | . 2 1 Drop 4 | . 1 3 Fire 67 | . 10 57 Melee . | . . . Ram . | . . . Kick . | . . . Crush 1 | . . 1 Escape Stasis . | . . . Rewire . | . . . Trap . | . . . Miscellaneous . | . . . Route ------- -11/Scrapyard -10/Materials (discovered 4 exits: *Mat x2 / [*Min x2]) -9/Materials History --------- Turn | Location | Event 24 | -11/Scrapyard | Discovered new exit (range 16) 45 | -11/Scrapyard | Entered Materials 92 | -10/Materials | Discovered new exit (range 16) 219 | -10/Materials | Discovered new exit (range 6) 237 | -10/Materials | Discovered new exit (range 14) 315 | -10/Materials | Build established: Mutant 469 | -10/Materials | Discovered new exit (range 8) 573 | -10/Materials | Entered another Materials area 573 | -9/Materials | Evolved 2 slots: Utility x2 763 | -9/Materials | Lost 6 parts (1p2n1u2w) 842 | -9/Materials | Core integrity fell below 50% 1006 | -9/Materials | Self-destructed Last Messages --------------- 00913_ Switching to secondary target: G-34 Mercenary. 00914_ Acquired 6 matter. 00922_ G-34 Mercenary destroyed. 00923_ Acquired 6 matter. 00946_ K-01 Serf collects debris. 00951_ Connecting with Terminal... 00951_ Current location identified: Materials >>Trojan(Skim) Trojan loaded successfully. Testing... Terminal linked with 0 systems. Please expand to 4 more systems! 00966_ Critical hit (Burn: +37). 00973_ Y-45 Defender destroyed. 00976_ Lgt. Armor Plating destroyed. 00981_ Lgt. Nuclear Core destroyed. 00983_ Acquired 18 matter. 00986_ Acquired Imp. Ion Engine. 00990_ Lgt. Treads destroyed. 00991_ Assault Rifle destroyed. Map ----- +----------------------------------------------------+ | ??????????????????????????????????????????????? | | ??????????????????????????????????????????????? | | ??????????????????????????????????????????????? | | ????"""?????????????????????????????????????""? | | ???"""""????????????????????????????????????""? | | ???"""""????????????????????????????????????T"? | | ???"""""????????????????????????????????????""? | | ????"""?????????????????????????????????????""? | | ??????????????????????????????????????????????? | | ??????????????????????????????????????? #?"""?? | | ##########????????????????????????????? #?"""?? | | #???????????????????????????? #?"""?? | | #???????????????????????????? #?"""?? | | "" #???????????????????????????? #?????? | | ! "" #???????????????????????????? #??#??? | | %""" T" #???????????????????????????? #? ???? | | """ "" #???????????????????????????? # """?? | | """ "" #??????????????????????????? # """?? | | #??????????????????????????? +?"""?? | | ##########??????????????????????????? #?"""?? | | ????????????????###########?????????? #?"""?? | | ????????????????# #######???? #?????? | | ????????????????# [ # ##### #?????? | | #?????#######???# # #?????? | | ####### #???# rgg T #?????? | | [##### @# #?????? | | %% + # [%= ######+##?????? | | %!##### ###!###?????????????? | | ##### =*#???# #?# #??????"""???"??? | | #???# #???###########?# #??????"""???T??? | | ????# #???????????????# #??????"""???"??? | | ????# #???????????????#+#???????????????? | | ????# *% #??????????????? ???????????????? | | ????# = = #??????????????? ???????????????? | | ????# #??????????????? ???????????????? | | ????# =% #??????????????? ???????????????? | | ????#####/####?????????????""" """????????????? | | ?????# #?????????????""" """????????????? | | ?????# #?????????????""" """????????????? | | ?????# #???????????????? ??????????????? | | ??T??# #????????????????##??????????????? | | ?????# #????????????????????????????????? | | ?????# #????????????????????????????????? | | ?????# |#????????????????????????????????? | | ?????# #????????????????????????????????? | | ?????# #????????????????????????????????? | | ?????# #????????????????????????????????? | | ?????# #????????????????????????????????? | | ?????#########????????????????????????????????? | | ??????????????????????????????????????????????? | +----------------------------------------------------+ Best States ------------- Heat Dissipation 38 Energy Generation 14 Energy Capacity 265 Matter Stores 300 Matter Capacity 300 Sight Range 18 Terrain Scan Density 10 Armor Coverage 150 Resistance: KI 20 Resistance: TH 20 Resistance: EX 20 Resistance: EM 20 Resistance: I 20 Resistance: S 20 Resistance: P 20 Evasion (%) 45 Targeting Accuracy 5 Recoil Reduction 2 Offensive Hacking 10 Item Schematics ----------------- None Robot Schematics ------------------ None Fabricated ------------ Nothing Repaired ---------- Nothing Studied --------- None Alien Tech Used ----------------- None Achievements -------------- None Challenges ------------ None Game ------ Seed CobblerTransportCorpse Manual? 0 Play Time 00:16:18 Cumulative 53.9 hours Start 2025.11.04 @ 11:38:15 End 2025.11.04 @ 11:52:14 Sessions 1 Manual Loads 0 Difficulty Adventurer Special Mode None Game No. 40 Rogue 13 Adventurer 27 Explorer 0 Win Type - Total 0 Types 0/0/0/0/0/0/0/0/0/0 Lore% 19 Gallery% 31 Achievement% 23 Wizard Run 0 Options --------- Layout 0 ASCII 0 Keyboard 1 Movement Numpad Keybinds 0 Fullscreen 2 Font 18/X11 Map View 76x50 Zoom Use 0% Tactical HUD 1 Map Filters NONE Filters NONE Steam 1 RUN: d3eab1d9-4372-4df1-9bd1-17e41ab1ea2b